Cogmind - Beta 13 @@@ ROGUE MODE // 2024.04.02 @ 19:59:40 Player: Cheeriohz Result: Self-destructed Performance ------------- Evolutions (2) 1000 Regions Visited (7) 1400 Robots Destroyed (19) 95 Value Destroyed (394) 394 Prototype IDs (4) 80 Alien Tech Used (0) 0 Bonus (0) 0 TOTAL SCORE: 2969 Bonus ------- None Cogmind --------- Core Integrity 343/550 Matter 261/300 Energy 100/100 System Corruption 1% Temperature Cool (18) Movement Core (200) Ox3 Location -8/Materials Parts ------- > --- POWER (1) -------- (None) > --- PROPULSION (4) --- (None) > --- UTILITY (4) ------ Medium Storage Unit Visual Processing Unit Signal Interpreter > --- WEAPON (2) ------- (None) > --- INVENTORY (10) --- Weight Redist. System Sensor Array Improved Sensor Array Improved Terrain Scanner Improved Terrain Scan Processor System Shield Rocket Launcher Peak State ------------ > --- POWER ------------ Light Ion Engine > --- PROPULSION ------- Advanced Treads Flight Unit Flight Unit Flight Unit > --- UTILITY ---------- Medium Storage Unit Weight Redist. System Sensor Array System Shield > --- WEAPON ----------- Shock Rifle Enhanced Autogun > --- INVENTORY -------- Visual Processing Unit Sensor Array Signal Interpreter Improved Terrain Scanner Improved Terrain Scan Processor System Shield Rocket Launcher [Rating: 22] Favorites ----------- Power Light Ion Engine Engine Light Ion Engine Power Core Light Nuclear Core Propulsion Flight Unit Treads Advanced Treads Leg Aluminum Leg Flight Unit Flight Unit Utility Sensor Array Device Sensor Array Storage Small Storage Unit Processor Signal Interpreter Hackware System Shield Weapon Assault Rifle Energy Gun EM Shotgun Energy Cannon EM Pulse Cannon Ballistic Gun Assault Rifle Launcher Rocket Launcher Build | -11 -10 -10 -9 -9 -9 -8 -8 ------- Run | Yrd Mat Min Mat Min Exi Min Mat Slots Evolved 4 | . . . 2 . . . 2 Power . | . . . . . . . . Propulsion 2 | . . . 1 . . . 1 Utility 2 | . . . 1 . . . 1 Weapon . | . . . . . . . . Parts Attached 32 | . 7 . 4 . 2 1 18 Power 4 | . 1 . . . . . 3 Engine 2 | . 1 . . . . . 1 Core 2 | . . . . . . . 2 Reactor . | . . . . . . . . Propulsion 10 | . 3 . 1 . . . 6 Treads 2 | . . . . . . . 2 Leg . | . . . . . . . . Wheel . | . . . . . . . . Hover . | . . . . . . . . Flight 8 | . 3 . 1 . . . 4 Utility 10 | . 2 . 2 . 2 . 4 Device 6 | . 2 . 1 . 1 . 2 Storage 1 | . . . . . 1 . . Processor 2 | . . . . . . . 2 Hackware 1 | . . . 1 . . . . Protection . | . . . . . . . . Artifact . | . . . . . . . . Weapon 8 | . 1 . 1 . . 1 5 Energy Gun 3 | . . . 1 . . . 2 Energy Cannon 2 | . . . . . . . 2 Ballistic Gun 2 | . 1 . . . . . 1 Ballistic Cannon . | . . . . . . . . Launcher 1 | . . . . . . 1 . Special Weapon . | . . . . . . . . Impact Weapon . | . . . . . . . . Slashing Weapon . | . . . . . . . . Piercing Weapon . | . . . . . . . . Special Melee Weapon . | . . . . . . . . Unidentified Prototypes 2 | . . . . . . . 2 Corrupted Parts 1 | . . . . . . . 1 System Corruption 1 | . . . . . . . 1 Parts Lost 11 | . . . . . . . 11 Power 3 | . . . . . . . 3 Propulsion 5 | . . . . . . . 5 Utility 1 | . . . . . . . 1 Weapon 2 | . . . . . . . 2 Highest Loss Streak 9 | . . . . . . . 9 To Critical Strikes . | . . . . . . . . Average Slot Usage (%) 82 | . 82 85 88 88 84 88 75 Engine 10 | . 14 14 11 11 11 11 3 Core 1 | . . . . . . . 4 Treads 1 | . . . . . . . 5 Flight 27 | . 26 28 33 33 33 33 22 Device 12 | . 13 14 11 11 11 11 12 Storage 11 | . 14 14 11 11 11 11 9 Processor 1 | . . . . . . . 6 Hackware 5 | . . . 10 11 11 11 8 Energy Gun 2 | . . . 5 11 7 . 1 Ballistic Gun 7 | . 11 14 5 . . . 3 Naked Turns . | . . . . . . . . Heaviest Build 21 | 13 14 10 12 12 13 17 21 Greatest Support 22 | 20 20 14 18 12 18 18 22 Greatest Overweight (x) 4 | . 1 . . . . . 4 Average Overweight (x) . | . . . . . . . . Largest Inventory Capacity 10 | 8 8 8 8 8 10 10 10 Average Capacity 8 | 8 8 8 8 8 8 10 10 Most Carried 10 | 6 8 8 8 8 9 9 10 Average Carried 7 | 6 7 8 7 7 8 8 8 Final Capacity 10 | 8 8 8 8 8 10 10 10 Final Carried 9 | 6 8 8 8 8 9 9 7 Class Distribution -------------------- 87% | Mutant 12% | Sprinter Dominant Class ---------------- Mutant | -10/Materials Mutant | -10/Mines Mutant | -9/Materials Mutant | -9/Mines Mutant | -9/Exiles Mutant | -8/Mines Sprinter | -8/Materials Resources | -11 -10 -10 -9 -9 -9 -8 -8 ----------- Run | Yrd Mat Min Mat Min Exi Min Mat Matter Collected 611 | 200 113 . . 19 . 120 159 Remotely . | . . . . . . . . Salvage Created 588 | . 168 . . . . 52 368 Parts 41 | . 16 . . . . 8 17 Haulers Intercepted 2 | . 2 . . . . . . Recyclers Shooed . | . . . . . . . . Parts Field Recycled . | . . . . . . . . Retrieved Matter . | . . . . . . . . Parts Self-Destructed . | . . . . . . . . Prevented . | . . . . . . . . Kills | -11 -10 -10 -9 -9 -9 -8 -8 ------- Run | Yrd Mat Min Mat Min Exi Min Mat Combat Hostiles Destroyed 11 | . . . . . . 6 5 Guns 4 | . . . . . . . 4 Cannons 1 | . . . . . . . 1 AOE 6 | . . . . . . 6 . Classes Destroyed 7 | . 3 . . . . 1 3 Tunneler 2 | . 1 . . . . 1 . Hauler 2 | . 2 . . . . . . Mechanic 1 | . . . . . . . 1 Watcher 3 | . 2 . . . . . 1 Swarmer 6 | . . . . . . 6 . Grunt 4 | . . . . . . . 4 Sentry 1 | . . . . . . . 1 Best Kill Streak 7 | . 1 . . . . 7 5 Combat Bots Only 6 | . . . . . . 6 4 Max Kills in Single Turn 4 | . 1 . . . . 4 1 Gunslinging . | . . . . . . . . Exploded 3 | . . . . . . 3 . Melee . | . . . . . . . . Uniques/NPCs Destroyed . | . . . . . . . . Combat | -11 -10 -10 -9 -9 -9 -8 -8 -------- Run | Yrd Mat Min Mat Min Exi Min Mat Hostile Shots Fired 112 | . 1 . 22 . . 7 82 Missed 44 | . 1 . 12 . . 5 26 Damage Taken 1009 | . 28 . 112 . . 14 855 Core 239 | . . . 32 . . . 207 Absorbed by Shields . | . . . . . . . . Core Remaining (%) 97 | 100 . 100 . . . 92 . Volleys Fired 63 | . 29 . 7 . . 3 24 Largest 1 | . 1 . 1 . . 1 1 Hottest 63 | . 20 . 20 . . 33 63 Shots Fired 63 | . 29 . 7 . . 3 24 Gun 54 | . 29 . 7 . . . 18 Cannon 6 | . . . . . . . 6 Launcher 3 | . . . . . . 3 . Special . | . . . . . . . . Kinetic 47 | . 29 . 7 . . . 11 Thermal . | . . . . . . . . Explosive 3 | . . . . . . 3 . Electromagnetic 13 | . . . . . . . 13 Robot Hit Streak 9 | . 9 . 2 . . . 7 Robot Miss Streak 4 | . 4 . 2 . . 3 2 Penetration Max . | . . . . . . . . Secondary Targets . | . . . . . . . . Shots Hit Robots 40 | . 17 . 4 . . . 19 Core Hits 29 | . 8 . 1 . . 7 13 Critical Kills . | . . . . . . . . Critical Parts Destroyed . | . . . . . . . . Critical Strikes . | . . . . . . . . Melee Attacks . | . . . . . . . . Impact . | . . . . . . . . Slashing . | . . . . . . . . Piercing . | . . . . . . . . Sneak Attacks . | . . . . . . . . Combat Hostiles . | . . . . . . . . Follow-up Attacks . | . . . . . . . . Damage Inflicted 1006 | . 206 . 49 . . 323 428 Guns 541 | . 206 . 49 . . . 286 Cannons 142 | . . . . . . . 142 Explosions 323 | . . . . . . 323 . Melee . | . . . . . . . . Ramming . | . . . . . . . . Kinetic 438 | . 206 . 49 . . . 183 Thermal . | . . . . . . . . Explosive 323 | . . . . . . 323 . Electromagnetic 245 | . . . . . . . 245 Impact . | . . . . . . . . Slashing . | . . . . . . . . Piercing . | . . . . . . . . Highest Corruption 1 | . . . . . . . 1 Average Corruption 1 | . . . . . . . 1 Corruption Purged . | . . . . . . . . Corruption Blocked . | . . . . . . . . Overload Shots . | . . . . . . . . Overflow Damage . | . . . . . . . . Projectiles . | . . . . . . . . Explosions . | . . . . . . . . Melee . | . . . . . . . . Knockbacks . | . . . . . . . . Impact . | . . . . . . . . Kinetic . | . . . . . . . . Secondary . | . . . . . . . . Self-Inflicted Damage . | . . . . . . . . Shots . | . . . . . . . . Rammed . | . . . . . . . . Targets Rammed . | . . . . . . . . Kicked . | . . . . . . . . Crushed . | . . . . . . . . Highest Temperature 56 | . . . 1 . . 2 56 Average Temperature 21 | . . . 1 . . 2 23 Received Heat Transfer 414 | . . . 18 . . . 396 Siege Activations . | . . . . . . . . Robots Corrupted . | . . . . . . . . Combat Hostiles . | . . . . . . . . Parts Fried 1 | . . . . . . . 1 Impact Corruptions . | . . . . . . . . Robots Melted . | . . . . . . . . Combat Hostiles . | . . . . . . . . Parts Melted . | . . . . . . . . Heat Transferred . | . . . . . . . . Parts Sabotaged . | . . . . . . . . Parts Stolen . | . . . . . . . . Parts Stripped . | . . . . . . . . Power Chain Reactions . | . . . . . . . . Alert | -11 -10 -10 -9 -9 -9 -8 -8 ------- Run | Yrd Mat Min Mat Min Exi Min Mat Peak Influence 345 | . 101 18 339 132 . 173 345 Initial 132 | . . 18 6 132 . . 66 Average 89 | . 41 18 89 132 . 114 173 Maximum Alert Level 1 | . . . 1 . . . 1 Low Security (%) 88 | 100 100 100 83 100 . 100 62 Level 1 11 | . . . 16 . . . 37 Level 2 . | . . . . . . . . Level 3 . | . . . . . . . . Level 4 . | . . . . . . . . Level 5 . | . . . . . . . . High Security . | . . . . . . . . Max Security . | . . . . . . . . Squads Dispatched 2 | . 1 . . . . . 1 Investigation . | . . . . . . . . Extermination . | . . . . . . . . Reinforcement 2 | . 1 . . . . . 1 Assault . | . . . . . . . . Garrison . | . . . . . . . . Intercept . | . . . . . . . . Searches Triggered . | . . . . . . . . Construction Impeded . | . . . . . . . . Haulers Reinforced . | . . . . . . . . Active Scanning Responses . | . . . . . . . . Cargo Convoy Interrupts . | . . . . . . . . Stealth | -11 -10 -10 -9 -9 -9 -8 -8 --------- Run | Yrd Mat Min Mat Min Exi Min Mat Distress Signals 4 | . 1 . . . . . 3 Communications Jammed . | . . . . . . . . Distress Signals . | . . . . . . . . Times Spotted 63 | . 12 . 20 . . 6 25 Peak Tracking Total 13 | . 3 . 13 . . 6 13 Tactical Retreats 6 | . 2 . 3 . . . 1 Traps | -11 -10 -10 -9 -9 -9 -8 -8 ------- Run | Yrd Mat Min Mat Min Exi Min Mat Traps Triggered 1 | . 1 . . . . . . Indirectly . | . . . . . . . . Trap Hack Attempts . | . . . . . . . . Triggered . | . . . . . . . . Disarmed . | . . . . . . . . Reprogrammed . | . . . . . . . . Reused . | . . . . . . . . Traps Extracted . | . . . . . . . . Installed . | . . . . . . . . Triggered . | . . . . . . . . Machines | -11 -10 -10 -9 -9 -9 -8 -8 ---------- Run | Yrd Mat Min Mat Min Exi Min Mat Machines Disabled 1 | . 1 . . . . . . Max in Single Turn 1 | . 1 . . . . . . Machines Repaired . | . . . . . . . . Machines Dismantled . | . . . . . . . . Machines Sabotaged . | . . . . . . . . Overloaded Fab Kills . | . . . . . . . . Hacking | -11 -10 -10 -9 -9 -9 -8 -8 --------- Run | Yrd Mat Min Mat Min Exi Min Mat Machines Accessed 11 | . 4 . 4 . . . 3 Terminals 11 | . 4 . 4 . . . 3 Fabricators . | . . . . . . . . Repair Stations . | . . . . . . . . Recycling Units . | . . . . . . . . Scanalyzers . | . . . . . . . . Garrison Access . | . . . . . . . . Total Hacks 56 | . 21 . 15 . . . 20 Successful 28 | . 11 . 11 . . . 6 Failed 28 | . 10 . 4 . . . 14 Catastrophic 7 | . 1 . 3 . . . 3 Database Lockouts . | . . . . . . . . Manual 47 | . 18 . 11 . . . 18 Terminals 56 | . 21 . 15 . . . 20 Fabricators . | . . . . . . . . Repair Stations . | . . . . . . . . Recycling Units . | . . . . . . . . Scanalyzers . | . . . . . . . . Garrison Access . | . . . . . . . . Terminal Hacks 14 | . 4 . 7 . . . 3 Record 1 | . 1 . . . . . . Part Schematic 1 | . 1 . . . . . . Robot Analysis 1 | . . . . . . . 1 Prototype ID Bank 1 | . . . 1 . . . . Branch Access Points 3 | . 1 . 1 . . . 1 Terminal Index 2 | . 1 . 1 . . . . Dispatch Records 1 | . . . 1 . . . . Patrol Status 1 | . . . 1 . . . . Registered Components 1 | . . . 1 . . . . Zone Layout 2 | . . . 1 . . . 1 Fabricator Hacks . | . . . . . . . . Repair Station Hacks . | . . . . . . . . Recycling Unit Hacks . | . . . . . . . . Scanalyzer . | . . . . . . . . Garrison Access Hacks . | . . . . . . . . Unauthorized Hacks 14 | . 7 . 4 . . . 3 Terminals 14 | . 7 . 4 . . . 3 Track 1 | . 1 . . . . . . Assimilate 1 | . 1 . . . . . . Botnet 11 | . 4 . 4 . . . 3 Disrupt 1 | . 1 . . . . . . Fabricators . | . . . . . . . . Repair Stations . | . . . . . . . . Recycling Units . | . . . . . . . . Scanalyzers . | . . . . . . . . Garrison Access . | . . . . . . . . Data Cores Recovered . | . . . . . . . . Used . | . . . . . . . . Hacking Detections 10 | . 4 . 3 . . . 3 Full Trace Events 1 | . 1 . . . . . . Feedback Events . | . . . . . . . . Feedback Blocked . | . . . . . . . . Robot Schematics Acquired . | . . . . . . . . Robots Built . | . . . . . . . . Authchips . | . . . . . . . . Time . | . . . . . . . . Total Robot Build Rating . | . . . . . . . . Part Schematics Acquired 1 | . 1 . . . . . . Parts Built . | . . . . . . . . Authchips . | . . . . . . . . Time . | . . . . . . . . Total Part Build Rating . | . . . . . . . . Parts Repaired . | . . . . . . . . Time . | . . . . . . . . Parts Recycled . | . . . . . . . . Recycled Matter . | . . . . . . . . Retrieved Matter . | . . . . . . . . Retrieved Components . | . . . . . . . . Parts Scanalyzed . | . . . . . . . . Part Schematics Acquired . | . . . . . . . . Parts Damaged . | . . . . . . . . Bothacking | -11 -10 -10 -9 -9 -9 -8 -8 ------------ Run | Yrd Mat Min Mat Min Exi Min Mat Used RIF Installer . | . . . . . . . . Robots Hacked . | . . . . . . . . Non-combat . | . . . . . . . . Combat . | . . . . . . . . Robot Hacks Applied . | . . . . . . . . Relay Couplers Released . | . . . . . . . . Fabnet Peak Effective % . | . . . . . . . . Robots Rewired . | . . . . . . . . Allies Hacked . | . . . . . . . . Hacks Repelled . | . . . . . . . . Allies | -11 -10 -10 -9 -9 -9 -8 -8 -------- Run | Yrd Mat Min Mat Min Exi Min Mat Total Allies 1 | . 1 . . . . . . Largest Group 1 | . 1 1 1 . . . . Highest-Rated Group 10 | . 10 10 10 . . . . Highest-Rated Ally 10 | . 10 10 10 . . . . Total Orders . | . . . . . . . . Ally Attacks . | . . . . . . . . Total Damage . | . . . . . . . . Kills . | . . . . . . . . Allies Corrupted . | . . . . . . . . Allies Melted . | . . . . . . . . Intel | -11 -10 -10 -9 -9 -9 -8 -8 ------- Run | Yrd Mat Min Mat Min Exi Min Mat Robot Analysis Total 1 | . . . . . . . 1 Derelict Logs Recovered . | . . . . . . . . Drone Launches . | . . . . . . . . Drone Recoveries . | . . . . . . . . Exploration | -11 -10 -10 -9 -9 -9 -8 -8 ------------- Run | Yrd Mat Min Mat Min Exi Min Mat Turns Passed 1059 | 3 480 34 130 75 57 18 262 Spaces Moved 1594 | 3 498 51 295 172 157 31 387 Core 6 | . . . . . . . 6 Treads 3 | . . . . . . . 3 Legs 19 | 3 16 . . . . . . Wheels . | . . . . . . . . Hover . | . . . . . . . . Flight 1566 | . 482 51 295 172 157 31 378 Fastest Speed 29 | 120 37 37 34 34 34 34 29 Average Speed 49 | 120 77 37 34 34 34 34 39 Slowest Speed 250 | 120 190 37 34 34 34 34 250 Overloaded Moves . | . . . . . . . . Propulsion Burnouts . | . . . . . . . . Robots Hopped 16 | . 4 . 2 . . 1 9 Cave-ins Triggered . | . . . . . . . . Exploration Rate (%) 31 | 3 54 25 28 35 50 10 44 Regions Visited 7 Branch Regions 4 Pre-discovered Areas . | . . . . . . . . Known Exits Taken 2 | . 1 . 1 . . . . Unknown Exits Taken 5 | 1 . 1 . 1 1 1 . Scrap Searched 1 | . . . . 1 . . . Spaces Dug . | . . . . . . . . Terrain Destroyed 30 | . . . . . . 30 . Melee . | . . . . . . . . Projectile . | . . . . . . . . AOE 30 | . . . . . . 30 . Terrain Rammed . | . . . . . . . . Walls Destroyed . | . . . . . . . . Machines Disabled . | . . . . . . . . Actions | -11 -10 -10 -9 -9 -9 -8 -8 --------- Run | Yrd Mat Min Mat Min Exi Min Mat Total 1794 | 2 560 65 315 188 160 34 470 Wait 84 | . 13 15 7 15 . . 34 Move 1555 | 2 489 50 290 171 156 28 369 Hop 16 | . 4 . 2 . . 1 9 Pick Up 13 | . 6 . 2 1 . . 4 Fast Attach 13 | . 5 . 2 . . . 6 Attach 14 | . 2 . 2 . . 1 9 Detach 12 | . 3 . 1 . 1 1 6 Swap 5 | . . . . . 2 . 3 Drop 19 | . 9 . 2 1 1 . 6 Fire 63 | . 29 . 7 . . 3 24 Melee . | . . . . . . . . Ram . | . . . . . . . . Kick . | . . . . . . . . Crush . | . . . . . . . . Escape Stasis . | . . . . . . . . Rewire . | . . . . . . . . Trap . | . . . . . . . . Miscellaneous . | . . . . . . . . Route ------- -11/Scrapyard -10/Materials (discovered 3 exits: *Mat / *Min x2) -10/Mines -9/Materials (discovered 2 exits: Mat / *Min) -9/Mines -9/Exiles (discovered 2 exits: [*Min x2]) -8/Mines -8/Materials History --------- Turn | Location | Event 1 | -11/Scrapyard | Discovered new exit (range 2) 4 | -11/Scrapyard | Entered Materials 205 | -10/Materials | Identified exit to Mines 287 | -10/Materials | Discovered new exit (range 13) 305 | -10/Materials | Build established: Mutant 484 | -10/Materials | Entered Mines 484 | -10/Mines | Accompanied by 1 ally 500 | -10/Mines | Discovered new exit (range 8) 518 | -10/Mines | Entered Materials 518 | -9/Materials | Accompanied by 1 ally 518 | -9/Materials | Evolved 2 slots: Propulsion x1, Utility x1 589 | -9/Materials | Identified exit to Mines 594 | -9/Materials | Discovered new exit (range 18) 648 | -9/Materials | Entered Mines 649 | -9/Mines | Assembled infested the area 661 | -9/Mines | Met a Derelict bent on vengeance 694 | -9/Mines | Received a Rocket Launcher from a helpful Derelict 722 | -9/Mines | Deemed a non-threat by the Exiles lab entrance 722 | -9/Mines | Discovered new exit (range 5) 723 | -9/Mines | Entered Exiles 728 | -9/Exiles | Discovered new exit (range 15) 731 | -9/Exiles | Met 8R-AWN 738 | -9/Exiles | Met EX-HEX 751 | -9/Exiles | Met EX-DEC 777 | -9/Exiles | Discovered new exit (range 12) 780 | -9/Exiles | Entered Mines 793 | -8/Mines | Discovered new exit (range 11) 798 | -8/Mines | Entered Materials 798 | -8/Materials | Evolved 2 slots: Propulsion x1, Utility x1 1060 | -8/Materials | Self-destructed Last Messages --------------- 01018_ W-25 Informer sends out distress signal. 01027_ Flight Unit destroyed. 01027_ K-01 Serf collects debris. 01028_ Flight Unit destroyed. 01028_ Critical hit (Burn: +37). 01033_ W-25 Informer sends out distress signal. 01033_ ALERT: Hostiles spotted, dispatching reinforcements to Terminal M003. 01036_ Lgt. Deuterium Engine destroyed. 01039_ VTOL Module destroyed. 01040_ G-47 Trooper destroyed. 01044_ K-01 Serf collects debris. 01048_ EM Pulse Cannon destroyed. 01048_ Adv. Treads destroyed. 01052_ K-01 Serf collects debris. 01054_ Flight Unit destroyed. 01056_ R-06 Scavenger collects Corrupted Aluminum Leg. 01057_ Lgt. Nuclear Core destroyed. 01057_ System Shield destroyed. 01059_ R-06 Scavenger collects Corrupted Imp. Heat Sink. Map ----- +----------------------------------------------------+ | ?????????????????????????????????????????????????? | | ?????????????????????????????????????????????????? | | ?????????????????????????????????????????????????? | | ?????????????????????????????????????????????????? | | ?????????????????????????????????????????????????? | | ?????????????????????????????????????????????????? | | ?????????????????????????????????????????????????? | | ?????????????????????????????????????????????????? | | ?????????????????????????????????????????????????? | | ?????????????????????????????????????????????????? | | ??????????????????????#####??????????????????????? | | ###???????????????????? #?????????????????????? | | #???????????????????? #?????????????????????? | | " #???????????????????? #?????????????????????? | | " #????????????????????# #?????????????????????? | | " #????????????????????# #?????????????????????? | | #????????????????????#Y #?????????????????????? | | #??????????#?????????# #?????????????????????? | | +##????????? #?????????# #????? ???????????????? | | #?????????? #?????????# #????"????????????????? | | #????????? #????????## ##?? ?????????????????? | | #????????? #??##????# ###+########## ?????? | | #???????? #?## ##### t ????? | | ######### #?# # a ????? | | #?# # w ????? | | ### !! # @ ###+#####????????????? | | + !! ## ##?? #??????????????? | | ### !! ## #??""" #??????????????? | | ######???? ##Yg #??""" #??????????????? | | #???????####+### #? """ #??????????????? | | ######### gYrg## #??????????????? | | g g+ """ #??????????????? | | #### ######### kg ## """ #??????????????? | | #??# ######### ########? """ #??????????????? | | #??# ## T =# #????????? #??????????????? | | #??# ## # #?????????! ] #??????????????? | | #??# ## """ + ####################### ##?? | | #??# ## """ # ? | | #??# ## """ # #??? | | #??# ## + #??? | | #??# ##########+#############+### ###???????? | | #### ###????? ???????# # #?????????? | | ## #??? " ?????# ! # #?????????? | | ## #??# "G" #????# ]# #?????????? | | ## #??# " " #????# "Y" # #?????????? | | ## #??# ! [[#????# """! / #?????????? | | ## #??# ! #????# * # #?????????? | | ### ##??# ! #????#####+#### #?????????? | | #?# #???# #????????# #??# #?????????? | | #?# #???######### #????????# #??# #?????????? | +----------------------------------------------------+ Best States ------------- Heat Dissipation 31 Energy Generation 14 Energy Capacity 250 Matter Stores 300 Matter Capacity 300 Sight Range 18 Robot Scan Range 15 Terrain Scan Density 10 Additional Mass Support 6 Evasion (%) 64 Recoil Reduction 1 Defensive Hacking 10 Item Schematics ----------------- Hcp. Storage Unit | -10/Materials | Hacked Robot Schematics ------------------ None Fabricated ------------ Nothing Alien Tech Used ----------------- None Achievements -------------- None Challenges ------------ None Game ------ Seed ChromaticTripodArmor Manual? 0 Play Time 00:25:31 Cumulative 90.6 hours Start 2024.04.02 @ 19:34:06 End 2024.04.02 @ 19:59:40 Sessions 1 Manual Loads 0 Difficulty Rogue Special Mode None Game No. 85 Rogue 85 Adventurer 0 Explorer 0 Win Type - Total 2 Types 2/0/0/0/0/0/0/0/0 Lore% 40 Gallery% 59 Achievement% 42 Wizard Run 0 Options --------- Layout 1 ASCII 0 Keyboard 1 Movement Numpad Keybinds 0 Fullscreen 1 Font 32/SmallcapsGlow Map View 77x35 Zoom Use 0% Tactical HUD 1 Map Filters NONE Filters NONE Steam 1 RUN: 5697acb7-6fc9-415a-b248-5156955580d3